bitfinex/quotes_SOLUSD_20251127
["timestamp","ask_amount","ask_price","bid_price","bid_amount"]
[1764205247621,7.70492672,142.97,142.94,0.71]
[1764205247817,0.71,142.96,142.93,1e-08]
[1764205248025,0.71,142.96,142.93,0.71000001]
[1764205248217,9.62769516,142.97,142.93,0.71000001]
[1764205248621,10.33769516,142.97,142.93,0.71000001]
[1764205248813,9.62769516,142.97,142.93,1e-08]
[1764205249020,6.99545295,142.95,142.93,1e-08]
[1764205249235,6.99545295,142.95,142.93,0.71000001]
[1764205250630,0.71,142.94,142.93,1e-08]
[1764205250935,9.62822139,142.95,142.93,1e-08]
[1764205250936,10.33822139,142.95,142.93,1e-08]
[1764205251137,9.62822139,142.95,142.93,1e-08]
[1764205251317,16.59318714,142.92,142.91,0.2]
[1764205251524,19.22595558,142.92,142.91,0.2]
[1764205251723,19.93595558,142.92,142.91,0.2]
[1764205251918,31.54967157,142.92,142.91,1e-08]
[1764205252526,35.91382448,142.92,142.91,1e-08]
[1764205252733,38.54659292,142.92,142.91,1e-08]
[1764205252934,38.26226978,142.92,142.91,1e-08]
[1764205253518,35.62950134,142.92,142.91,1e-08]
[1764205253723,38.26226978,142.92,142.91,1e-08]
[1764205254116,37.55226978,142.92,142.91,1e-08]
[1764205257242,29.01793048,142.94,142.91,0.71000001]
[1764205257421,6.99555673,142.95,142.91,0.71000001]
[1764205257623,26.10649048,142.96,142.91,0.71000001]
[1764205257940,6.99503409,142.96,142.91,0.71000001]
[1764205258138,107.91276844,142.97,142.91,0.71000001]
[1764205258139,19.90511887,142.97,142.91,0.71000001]
[1764205258335,10.07457966,142.97,142.91,0.71000001]
[1764205258731,12.7073481,142.97,142.91,0.71000001]
[1764205259121,12.7073481,142.97,142.91,7.70739134]
[1764205259321,12.7073481,142.97,142.92,0.71]
[1764205259638,2.63276844,142.96,142.92,0.71]
[1764205260761,12.7073481,142.97,142.92,0.71]
[1764205260931,10.07457966,142.97,142.92,0.71]
[1764205261251,9.37486305,142.97,142.92,0.71]
[1764205261452,3.34276844,142.96,142.92,0.71]
[1764205261753,2.63276844,142.96,142.92,0.71]
[1764205262358,12.71763149,142.97,142.92,0.71]
[1764205263152,12.00763149,142.97,142.92,0.71]
[1764205263360,10.3373481,142.97,142.92,0.71]
[1764205267859,3.34276844,142.96,142.92,0.71]
[1764205269138,2.63276844,142.96,142.92,0.71]
[1764205269338,0.71,142.95,142.92,0.71]
[1764205270155,6.99545295,142.95,142.92,0.71]
[1764205270755,18.94163244,142.93,142.91,1e-08]
[1764205271256,2.63276844,142.92,142.91,1e-08]
[1764205271635,5.43595005,142.92,142.91,1e-08]
[1764205271839,6.10595005,142.92,142.91,1e-08]
[1764205272243,13.1028714,142.92,142.91,1e-08]
[1764205273233,13.1028714,142.92,142.9,0.2]
[1764205273234,9.76426806,142.91,142.9,1e-08]
[1764205273434,28.7059005,142.91,142.87,0.2]
[1764205273759,11.44271336,142.88,142.87,0.2]
[1764205274143,12.11271336,142.88,142.87,0.2]
[1764205274348,19.11159353,142.88,142.87,0.2]
[1764205275246,6.99888017,142.88,142.87,0.2]
[1764205278863,9.6288078,142.94,142.87,0.9]
[1764205279049,4.69098353,142.93,142.87,3.53276844]
[1764205279253,9.6345821,142.89,142.88,3.33276844]
[1764205279553,9.6288078,142.94,142.88,3.33276844]
[1764205279760,9.6288078,142.94,142.89,0.7]
[1764205280149,10.2988078,142.94,142.89,0.7]
[1764205280644,9.6288078,142.94,142.89,0.7]
[1764205281769,6.99603936,142.94,142.89,0.7]
[1764205281952,9.6288078,142.94,142.89,0.7]
[1764205282153,12.7288078,142.94,142.89,0.7]
[1764205283071,5.88565375,143.0,142.89,7.69825924]
[1764205283275,27.77863047,143.0,142.9,84.63164772]
[1764205283451,2.63276844,142.97,142.91,5.73276844]
[1764205283770,3.1,142.98,142.92,2.63276844]
[1764205283960,121.10319509,143.0,142.95,2.63276844]
[1764205284276,124.40596353,143.0,142.93,3.33276844]
[1764205284779,141.88848101,143.0,142.94,0.7]
[1764205285273,141.88848101,143.0,142.94,3.33276844]
[1764205285469,3.30276844,142.99,142.94,0.7]
[1764205285675,0.67,142.99,142.95,0.7]
[1764205286373,121.10319509,143.0,142.95,3.33276844]
[1764205286554,114.10994492,143.0,142.95,3.33276844]
[1764205286754,121.102988,143.0,142.96,0.7]
[1764205287351,112.29304308,143.0,142.96,0.7]
[1764205287869,115.59581152,143.0,142.96,0.7]
[1764205290471,112.96304308,143.0,142.96,0.7]
[1764205290965,4.11308732,142.99,142.96,0.7]
[1764205291163,117.0761304,143.0,142.96,0.7]
[1764205292264,11.77679601,142.99,142.94,0.7]
[1764205292472,11.77679601,142.99,142.93,11.10946835]
[1764205292679,11.77679601,142.99,142.95,0.7]
[1764205292877,7.66370869,142.99,142.95,0.7]
[1764205293080,11.77679601,142.99,142.95,0.7]
[1764205293581,105.3,143.0,142.96,4.11308732]
[1764205293764,105.97,143.0,142.95,4.81308732]
[1764205294271,105.97,143.0,142.96,0.7]
[1764205294477,112.96302063,143.0,142.96,500.7]
[1764205294672,112.96302063,143.0,142.97,0.7]
[1764205295484,112.29302063,143.0,142.97,0.7]
[1764205296485,112.96302063,143.0,142.97,0.7]
[1764205297181,112.96302063,143.0,142.96,500.0]
[1764205297371,112.96302063,143.0,142.96,500.7]
[1764205298384,112.96302063,143.0,142.97,0.7]
[1764205299179,112.29302063,143.0,142.97,0.7]
[1764205300268,112.98302063,143.0,142.97,0.7]
[1764205301493,112.29302063,143.0,142.97,0.7]
[1764205302016,112.29302063,143.0,142.97,0.71]
[1764205302187,109.19302063,143.0,142.97,0.71]
[1764205302365,3.1,143.02,142.97,14.91735666]
[1764205302565,13.88448079,143.03,142.99,4.11308732]
[1764205302766,13.88448079,143.03,143.0,0.71]
[1764205302990,20.87606548,143.03,143.0,0.71]
[1764205304268,13.88448079,143.03,143.0,11.81605548]
[1764205304463,25.11880892,143.06,143.01,3.81]
[1764205304668,6.98920603,143.08,143.03,4.11308732]
[1764205304868,11.10229335,143.08,143.02,4.82308732]
[1764205305089,4.11308732,143.05,143.0,0.71]
[1764205305595,4.80308732,143.05,143.01,0.71]
[1764205306190,11.79412338,143.05,143.01,0.71]
[1764205306982,16.508864,143.09,143.01,25.18381024]
[1764205307172,0.2,143.09,143.06,4.11308732]
[1764205307373,0.2,143.09,143.07,0.71]
[1764205308298,0.2,143.09,143.07,4.82308732]
[1764205308598,0.2,143.09,143.08,4.82308732]
[1764205309095,0.2,143.09,143.08,0.71]
[1764205309295,0.2,143.09,143.08,4.82308732]
[1764205310500,0.2,143.09,143.08,11.81218432]
[1764205311880,0.2,143.09,143.08,12.09650746]
[1764205312084,0.2,143.09,143.08,14.91218432]
[1764205316395,0.2,143.09,143.08,19.30959478]
[1764205316597,1e-08,143.1,143.08,28.1195397]
[1764205316795,0.2,143.12,143.11,91.59318714]
[1764205317099,0.2,143.13,143.11,98.52195132]
[1764205317306,0.2,143.13,143.12,4.82308732]
[1764205317596,0.2,143.13,143.12,11.81023097]
[1764205317993,0.2,143.13,143.12,7.69714365]
[1764205318304,0.2,143.13,143.12,3.81]
[1764205318694,0.2,143.13,143.12,3.1]
[1764205319018,0.2,143.13,143.12,3.81]
[1764205320202,0.2,143.13,143.12,10.79714365]
[1764205320585,0.2,143.13,143.12,14.91023097]
[1764205321678,0.2,143.13,143.09,91.308864]
[1764205321875,0.2,143.13,143.08,7.69906714]
[1764205321876,0.89,143.13,143.08,7.69906714]
[1764205322093,0.69,143.12,143.08,10.79906714]
[1764205322700,0.69,143.12,143.08,14.91215446]
[1764205323090,0.69,143.12,143.09,0.71]
[1764205323494,0.2,143.13,143.09,0.71]
[1764205323692,0.89,143.13,143.09,0.71]
[1764205323994,0.2,143.13,143.09,4.82308732]
[1764205324196,0.2,143.13,143.12,4.11308732]
[1764205324403,0.2,143.13,143.12,8.20741046]
[1764205325102,0.2,143.14,143.13,91.59318714]
[1764205325290,0.2,143.14,143.13,96.13195132]
[1764205326180,0.2,143.14,143.13,103.40292994]
[1764205331387,1e-08,143.14,143.13,103.40292994]
[1764205332995,1e-08,143.14,143.13,116.32596218]
[1764205333302,0.69,143.24,143.18,75.0]
[1764205333508,0.69,143.24,143.19,3.1]
[1764205333886,0.69,143.24,143.19,7.86308732]
[1764205334602,0.69,143.25,143.22,6.98226504]
[1764205334809,0.69,143.25,143.22,10.08226504]
[1764205336612,0.69,143.25,143.22,14.84535236]
[1764205337003,0.69,143.25,143.22,14.19535236]
[1764205337202,0.69,143.25,143.22,10.08226504]
[1764205337403,0.69,143.25,143.22,14.19535236]
[1764205337705,0.69,143.25,143.22,3.1]
[1764205337886,0.69,143.25,143.22,10.08225083]
[1764205338086,0.69,143.25,143.22,10.73225083]
[1764205338691,0.69,143.25,143.22,10.08225083]
[1764205339306,0.69,143.25,143.22,3.1]
[1764205339898,0.69,143.25,143.18,75.0]
[1764205339899,11.78397872,143.25,143.18,11.09730299]
[1764205340212,4.11308732,143.24,143.19,3.1]
[1764205340408,4.11308732,143.23,143.19,3.1]
[1764205340719,0.69,143.23,143.19,3.1]
[1764205340921,0.69,143.22,143.19,3.1]
[1764205342619,0.69,143.22,143.13,0.65]
[1764205342620,4.11308732,143.2,143.13,0.65]
[1764205342800,4.11308732,143.2,143.15,3.1]
[1764205343129,0.69,143.19,143.15,7.86308732]
[1764205343291,0.69,143.19,143.15,7.21308732]
[1764205344320,0.69,143.19,143.15,3.1]
[1764205344521,0.69,143.19,143.15,13.98078297]
[1764205344898,0.69,143.19,143.15,30.28964697]
[1764205345417,7.67389421,143.19,143.15,3.1]
[1764205345728,19.69072789,143.18,143.14,3.1]
[1764205346021,20.38072789,143.18,143.14,3.1]
[1764205346216,0.69,143.17,143.14,3.1]
[1764205347917,0.69,143.17,143.14,10.0861655]
[1764205348727,0.69,143.17,143.14,3.1]
[1764205351007,7.67481355,143.17,143.12,3.1]
[1764205351410,0.69,143.16,143.12,3.1]
[1764205352528,8.80994492,143.15,143.12,3.1]
[1764205352909,0.69,143.14,143.12,3.1]
[1764205356413,7.67618318,143.14,143.09,6.98851433]
[1764205356624,0.69,143.13,143.1,3.1]
[1764205357018,8.80994492,143.17,143.12,7.03532245]
[1764205357209,8.80994492,143.17,143.14,7.03532245]
[1764205357409,9.49994492,143.17,143.14,7.03532245]
[1764205357610,9.49994492,143.17,143.14,7.68532245]
[1764205358340,8.80994492,143.17,143.14,7.68532245]
[1764205359128,8.80994492,143.17,143.14,0.65]
[1764205359410,8.80994492,143.17,143.14,7.68532245]
[1764205359610,8.80994492,143.17,143.14,0.65]
[1764205359611,0.69,143.17,143.14,0.65]
[1764205360635,102.2,143.19,143.14,7.68532245]
[1764205360937,0.68,143.18,143.14,7.68532245]
[1764205361315,0.68,143.18,143.15,7.65567935]
[1764205361517,8.80994492,143.21,143.17,7.03532245]
[1764205361825,8.80994492,143.22,143.18,7.03532245]
[1764205362065,8.80994492,143.22,143.19,3.1]
[1764205362213,0.68,143.23,143.19,3.77]
[1764205363016,42.57104955,143.25,143.21,7.03532245]
[1764205363017,25.11880892,143.25,143.21,7.03532245]
[1764205363218,0.68,143.26,143.22,10.13532245]
[1764205363437,0.68,143.26,143.22,3.1]
[1764205364137,0.68,143.26,143.22,10.08224792]
[1764205364721,0.68,143.26,143.22,10.75224792]
[1764205367139,0.68,143.26,143.22,10.08224792]
[1764205367343,0.68,143.26,143.22,10.75224792]
[1764205368345,0.68,143.26,143.22,10.08224792]
[1764205368523,0.68,143.26,143.22,10.75224792]
[1764205369815,7.6605565,143.26,143.22,3.77]
[1764205370246,0.68,143.26,143.22,3.77]
[1764205370540,0.68,143.25,143.22,3.77]
[1764205371547,0.68,143.25,143.22,3.1]
[1764205372621,0.1,143.28,143.24,77.62222239]
[1764205372820,0.1,143.28,143.25,2.62222239]
[1764205373141,0.78,143.28,143.26,3.1]
[1764205374436,0.1,143.28,143.26,3.1]
[1764205376646,0.1,143.28,143.26,10.080298]
[1764205376950,0.1,143.28,143.26,10.750298]
[1764205377541,0.68,143.27,143.26,3.1]
[1764205377741,0.78,143.28,143.26,3.1]
[1764205380359,0.1,143.28,143.26,3.1]
[1764205380664,0.78,143.28,143.25,3.29222239]
[1764205380856,0.78,143.28,143.25,3.1]
[1764205381659,0.78,143.28,143.24,3.1]
[1764205381660,10.38156906,143.28,143.24,3.1]
[1764205382072,8.80994492,143.25,143.2,0.67]
[1764205382248,8.90994492,143.28,143.24,2.62222239]
[1764205382448,7.07942371,143.28,143.23,2.62222239]
[1764205382663,7.75942371,143.28,143.23,3.29222239]
[1764205382840,7.75942371,143.28,143.24,0.67]
[1764205383040,7.75942371,143.28,143.24,3.29222239]
[1764205383241,7.75942371,143.28,143.24,10.27346847]
[1764205383448,0.78,143.28,143.25,0.67]
[1764205383849,0.78,143.28,143.24,10.27346847]
[1764205384141,0.78,143.28,143.25,0.69]
[1764205384361,0.1,143.28,143.26,2.62222239]
[1764205384867,0.1,143.28,143.26,3.31222239]
[1764205385543,0.1,143.28,143.26,10.2924618]
[1764205385968,0.1,143.28,143.27,0.69]
[1764205386850,0.1,143.28,143.26,6.98023941]
[1764205387043,0.1,143.28,143.26,7.67023941]
[1764205387362,0.1,143.28,143.26,0.69]
[1764205390070,0.1,143.3,143.27,2.62222239]
[1764205390272,0.1,143.3,143.29,5.24444478]
[1764205390472,0.1,143.3,143.29,80.24444478]
[1764205390656,0.1,143.3,143.29,81.22876792]
[1764205390854,0.1,143.32,143.31,91.59318714]
[1764205391047,0.1,143.32,143.31,97.31540953]
[1764205391248,0.1,143.34,143.32,0.28432314]
[1764205391448,0.1,143.34,143.32,3.60654553]
[1764205392147,0.1,143.34,143.32,10.58393877]
[1764205396370,0.1,143.36,143.33,75.98432314]
[1764205396571,0.1,143.4,143.36,75.28432314]
[1764205396762,0.71,143.39,143.36,75.28432314]
[1764205396966,0.71,143.39,143.37,5.72222239]
[1764205397165,0.1,143.4,143.37,22.03108639]
[1764205397355,0.81,143.4,143.37,22.03108639]
[1764205398080,0.1,143.4,143.38,3.32222239]
[1764205398248,0.1,143.4,143.38,2.62222239]
[1764205398453,0.81,143.4,143.37,19.408864]
[1764205398771,0.81,143.4,143.37,22.03108639]
[1764205399370,0.81,143.4,143.37,29.00568281]
[1764205399553,0.81,143.4,143.37,22.03108639]
[1764205399750,0.81,143.4,143.32,93.4268921]
[1764205400062,0.81,143.4,143.34,2.62222239]
[1764205400257,7.78362659,143.4,143.34,9.59821569]
[1764205400848,0.71,143.39,143.34,9.59821569]
[1764205401249,0.71,143.39,143.34,10.29821569]
[1764205401879,7.68398722,143.39,143.34,9.59821569]
[1764205402263,0.71,143.38,143.34,9.59821569]
[1764205403086,0.81,143.4,143.36,2.62222239]
[1764205403258,0.1,143.4,143.37,3.1]
[1764205403456,0.71,143.39,143.37,3.1]
[1764205403868,0.1,143.4,143.37,6.42222239]
[1764205404761,0.81,143.4,143.37,6.42222239]
[1764205404962,0.81,143.4,143.37,5.72222239]
[1764205405363,0.81,143.4,143.37,12.69705633]
[1764205405873,0.81,143.4,143.38,3.1]
[1764205407176,7.78352684,143.4,143.38,3.1]
[1764205407481,0.71,143.39,143.38,3.1]
[1764205410576,8.80994492,143.36,143.28,0.7]
[1764205410783,8.80994492,143.38,143.33,2.62222239]
[1764205410978,0.71,143.37,143.34,3.1]
[1764205411188,15.78557414,143.36,143.33,3.1]
[1764205411668,0.71,143.35,143.33,3.1]
[1764205411869,11.43216731,143.34,143.27,95.07150293]
[1764205412058,8.80994492,143.34,143.28,10.07932025]
[1764205412265,0.71,143.33,143.28,10.07932025]
[1764205412586,4.80421065,143.33,143.28,10.07932025]
[1764205412889,4.80421065,143.33,143.28,10.77932025]
[1764205413085,0.71,143.32,143.28,10.77932025]
[1764205414466,0.71,143.32,143.28,7.67932025]
[1764205414788,0.71,143.32,143.29,3.1]
[1764205415761,0.71,143.32,143.29,10.07877614]
[1764205415967,8.80994492,143.35,143.3,0.7]
[1764205416313,0.1,143.4,143.34,95.40307465]
[1764205416468,0.1,143.4,143.36,4.09421065]
[1764205416669,0.1,143.4,143.36,79.09421065]
[1764205416867,0.1,143.4,143.37,0.7]
[1764205417133,0.1,143.4,143.38,3.1]
[1764205417396,0.1,143.4,143.38,14.16861032]
[1764205417583,0.81,143.4,143.38,3.1]
[1764205418680,0.1,143.4,143.38,10.07444933]
[1764205418910,0.81,143.4,143.38,10.07444933]
[1764205419116,0.1,143.4,143.38,10.07444933]
[1764205419685,0.1,143.4,143.38,10.77444933]
[1764205419919,0.1,143.4,143.38,14.86865998]
[1764205420104,0.1,143.4,143.38,10.07444933]
[1764205420302,0.82,143.4,143.38,3.1]
[1764205421514,0.82,143.4,143.36,6.97542588]
[1764205421681,11.88775756,143.4,143.37,3.1]
[1764205421886,0.82,143.4,143.36,3.1]
[1764205422408,0.82,143.4,143.36,3.8]
[1764205422887,0.1,143.4,143.37,79.79421065]
[1764205423286,0.1,143.4,143.38,0.7]
[1764205423486,0.1,143.4,143.39,10.07398702]
[1764205424305,0.1,143.4,143.39,10.77398702]
[1764205424607,0.1,143.4,143.39,10.07398702]
[1764205425106,0.1,143.4,143.39,3.1]
[1764205425613,0.1,143.4,143.39,10.07398702]
[1764205426815,0.1,143.4,143.39,20.91680495]
[1764205426997,0.1,143.4,143.39,10.07398702]
[1764205427908,0.1,143.4,143.39,21.90112809]
[1764205428101,0.1,143.4,143.39,96.90112809]
[1764205428816,0.1,143.4,143.39,10.07398702]
[1764205429711,0.1,143.4,143.39,21.90112809]
[1764205432009,0.1,143.4,143.39,11.05831016]
[1764205432193,0.1,143.4,143.39,21.90112809]
[1764205432392,0.1,143.4,143.39,10.35831016]
[1764205432595,0.1,143.4,143.39,21.20112809]
[1764205432811,0.1,143.4,143.39,10.07398702]
[1764205433620,0.1,143.4,143.39,20.91680495]
[1764205434431,0.1,143.4,143.39,10.07398702]
[1764205435693,0.1,143.4,143.39,3.1]
[1764205435998,0.1,143.4,143.39,10.07398702]
[1764205437107,0.1,143.4,143.39,11.05831016]
[1764205437306,0.1,143.4,143.39,21.90112809]
[1764205438408,1e-08,143.4,143.39,32.74394602]
[1764205438599,1e-08,143.4,143.39,21.90112809]
[1764205439008,1e-08,143.4,143.39,11.05831016]
[1764205439211,1e-08,143.4,143.39,21.90112809]
[1764205441330,1e-08,143.43,143.42,91.308864]
[1764205441530,1e-08,143.43,143.42,105.25168193]
[1764205441731,1e-08,143.43,143.42,102.43600507]
[1764205441901,1e-08,143.43,143.42,94.69318714]
[1764205442096,1e-08,143.43,143.42,105.53600507]
[1764205442314,1e-08,143.43,143.42,113.2085333]
[1764205443115,1e-08,143.43,143.42,112.5085333]
[1764205443420,1e-08,143.43,143.42,113.2085333]
[1764205444512,1e-08,143.43,143.42,106.45000647]
[1764205446218,1e-08,143.43,143.42,90.14114247]
[1764205446415,1e-08,143.43,143.42,90.83839529]
[1764205446796,0.1,143.45,143.44,91.308864]
[1764205447003,0.1,143.45,143.44,98.77747824]
[1764205447220,0.1,143.45,143.44,99.47747824]
[1764205447921,0.1,143.45,143.44,106.44903429]
[1764205448822,0.1,143.45,143.44,26.38042005]
[1764205450431,0.1,143.45,143.44,106.14471115]
[1764205450728,0.1,143.45,143.44,106.42903429]
[1764205451809,0.1,143.45,143.44,105.74903429]
[1764205452307,0.1,143.45,143.44,26.38042005]
[1764205452508,0.1,143.45,143.44,30.46471115]
[1764205452815,0.82,143.45,143.44,26.38042005]
[1764205453230,0.82,143.45,143.44,16.308864]
[1764205453405,0.82,143.45,143.4,3.1]
[1764205453406,8.80994492,143.44,143.4,3.1]
[1764205453607,0.82,143.45,143.41,4.0842911]
[1764205453835,0.72,143.44,143.41,4.0842911]
[1764205454517,0.72,143.44,143.42,6.97252823]
[1764205454712,0.72,143.44,143.43,3.1]
[1764205455631,0.1,143.45,143.43,7.1842911]
[1764205456012,0.1,143.45,143.43,3.1]
[1764205456221,0.82,143.45,143.43,3.1]
[1764205456407,0.82,143.45,143.41,6.97296119]
[1764205456612,0.82,143.45,143.41,27.50549727]
[1764205457310,0.82,143.45,143.41,31.58978837]
[1764205457510,0.1,143.45,143.42,4.7642911]
[1764205457813,0.82,143.45,143.42,4.0842911]
[1764205458520,0.82,143.45,143.43,4.0842911]
[1764205458737,0.82,143.45,143.41,103.18549727]
[1764205458924,0.1,143.45,143.43,4.0842911]
[1764205459127,0.1,143.45,143.44,4.0842911]
[1764205459313,0.1,143.45,143.44,7.1842911]
[1764205459712,0.1,143.45,143.44,7.8642911]
[1764205460034,0.1,143.45,143.44,7.1842911]
[1764205461024,0.1,143.45,143.44,14.15584715]
[1764205462417,0.1,143.45,143.44,14.83584715]
[1764205462623,0.72,143.49,143.44,39.01362153]
[1764205462841,0.72,143.49,143.47,10.83317536]
[1764205463036,0.72,143.49,143.48,6.96961248]
[1764205463533,0.72,143.49,143.48,17.80278784]
[1764205464036,0.72,143.51,143.48,35.22681906]
[1764205464224,0.72,143.51,143.48,24.3936437]
[1764205464431,0.72,143.51,143.49,10.83317536]
[1764205464931,0.82,143.53,143.5,10.83317536]
[1764205465247,0.82,143.53,143.51,6.96815552]
[1764205468435,0.82,143.53,143.5,6.96864111]
[1764205469646,0.82,143.53,143.5,17.80181647]
[1764205469945,0.82,143.53,143.5,24.39024389]
[1764205470122,0.82,143.53,143.51,10.83317536]
[1764205470525,0.82,143.53,143.5,28.25477814]
[1764205470731,0.1,143.53,143.52,10.83317536]
[1764205471445,0.82,143.53,143.52,10.83317536]
[1764205472016,0.1,143.53,143.52,10.83317536]
[1764205472846,0.1,143.53,143.52,17.80084537]
[1764205474548,0.1,143.53,143.52,13.96102529]
[1764205475647,1e-08,143.53,143.52,89.92534843]
[1764205476941,1e-08,143.53,143.52,18.00534843]
[1764205477648,1e-08,143.53,143.52,93.00534843]
[1764205477943,0.1,143.55,143.54,23.30221928]
[1764205478148,0.82,143.55,143.54,19.388864]
[1764205478358,0.82,143.55,143.52,27.46684503]
[1764205480955,0.82,143.55,143.52,34.46020031]
[1764205481749,0.82,143.55,143.52,27.46684503]
[1764205483650,0.82,143.55,143.52,17.04102529]
[1764205484552,0.82,143.55,143.52,12.65890385]
[1764205487747,0.82,143.55,143.52,30.07807887]
[1764205490149,0.82,143.55,143.52,12.65890385]
[1764205490561,0.82,143.55,143.52,10.04767001]
[1764205490733,0.82,143.55,143.52,12.65890385]
[1764205491262,0.82,143.55,143.53,2.61123384]
[1764205492041,0.82,143.55,143.52,30.07807887]
[1764205494156,0.82,143.55,143.52,2.61123384]
[1764205495257,0.82,143.55,143.51,5.69123384]
[1764205495476,0.82,143.55,143.49,10.04906472]
[1764205495477,10.3974587,143.55,143.49,10.04906472]
[1764205495856,0.66,143.54,143.49,10.04906472]
[1764205496664,0.66,143.54,143.49,12.66029856]
[1764205498161,0.66,143.54,143.51,2.61123384]
[1764205498688,0.1,143.55,143.51,2.61123384]
[1764205498961,0.76,143.55,143.53,2.61123384]
[1764205499652,0.76,143.55,143.52,2.61123384]
[1764205499854,0.76,143.55,143.53,6.96718456]
[1764205500357,0.1,143.55,143.54,3.31123384]
[1764205500657,28.86003899,143.67,143.57,16.308864]
[1764205500658,18.11966679,143.67,143.57,16.308864]
[1764205500859,0.1,143.68,143.67,16.308864]
[1764205501058,0.1,143.68,143.67,97.06009784]
[1764205501263,0.1,143.7,143.69,75.0]
[1764205501450,0.1,143.7,143.69,77.89555698]
[1764205501765,0.1,143.7,143.69,78.59555698]
[1764205501965,0.1,143.7,143.69,10.55498352]
[1764205502261,0.1,143.7,143.69,85.55498352]
[1764205502462,0.1,143.7,143.69,82.24374968]
[1764205502668,16.308864,143.78,143.69,16.02189422]
[1764205502849,2.78638849,143.86,143.72,16.308864]
[1764205503041,0.66,143.8,143.77,16.308864]
[1764205503241,0.66,143.8,143.73,75.0]
[1764205503465,0.66,143.8,143.74,19.508864]
[1764205503667,2.61123384,143.78,143.74,19.508864]
[1764205503858,8.80994492,143.77,143.72,3.2]
[1764205504060,12.08117876,143.77,143.72,3.2]
[1764205504245,0.66,143.76,143.7,3.2]
[1764205504574,0.66,143.76,143.72,6.97485357]
[1764205504867,0.66,143.76,143.73,3.2]
[1764205505458,15.78479849,143.75,143.71,3.2]
[1764205505768,6.97485357,143.72,143.64,0.7]
[1764205505966,23.40184517,143.74,143.67,23.28371757]
[1764205506142,0.66,143.75,143.68,3.2]
[1764205506343,0.66,143.75,143.7,6.97485357]
[1764205506656,0.66,143.75,143.71,6.97485357]
[1764205506874,0.66,143.75,143.66,75.0]
[1764205506875,15.78479849,143.74,143.65,0.7]
[1764205507053,6.97485357,143.73,143.68,16.308864]
[1764205507251,7.63485357,143.73,143.68,16.308864]
[1764205507580,7.63485357,143.73,143.66,3.2]
[1764205507581,7.63485357,143.72,143.66,3.2]
[1764205507755,6.97485357,143.71,143.63,0.67]
[1764205507956,6.97485357,143.68,143.6,7.63337308]
[1764205508147,15.78479849,143.69,143.62,6.97485357]
[1764205508357,0.71,143.68,143.63,6.97485357]
[1764205508660,0.71,143.68,143.63,3.2]
[1764205508868,6.97485357,143.67,143.6,6.97485357]
[1764205509183,6.97485357,143.66,143.62,3.2]
[1764205509481,7.68485357,143.65,143.6,3.2]
[1764205509856,7.68485357,143.65,143.58,3.2]
[1764205509857,13.93726887,143.63,143.58,3.2]
[1764205510258,0.65,143.62,143.58,3.2]
[1764205510458,0.65,143.62,143.52,6.96765198]
[1764205510459,8.80994492,143.61,143.52,6.96765198]
[1764205510768,6.97485357,143.59,143.53,8.29504521]
[1764205510947,6.97485357,143.58,143.53,3.2]
[1764205511249,6.97485357,143.56,143.53,3.2]
[1764205511788,0.65,143.55,143.53,3.2]
[1764205511967,0.65,143.55,143.48,17.37]
[1764205511968,7.62485357,143.55,143.48,24.34485357]
[1764205512162,6.97485357,143.54,143.49,8.30106292]
[1764205512364,13.94128547,143.55,143.5,5.10106292]